fUSD/lending_fUSD_20260529
["ID","MTS","AMOUNT","RATE_DAILY","PERIOD"]
[423320860,1780054299000,-465.13969778,0.00012902,2]
[423320864,1780054299000,-1000.0,0.00013762,2]
[423320865,1780054299000,-622.11319051,0.00014409,2]
[423320862,1780054299000,-7525.92687749,0.00013082,2]
[423320861,1780054299000,-34.86030222,0.00012902,2]
[423320855,1780054299000,-500.0,0.00011806,2]
[423320858,1780054299000,-500.0,0.00012354,2]
[423320856,1780054299000,-72.01969778,0.0001208,2]
[423320859,1780054299000,-500.0,0.00012628,2]
[423320850,1780054299000,-776.948554,0.00032877,7]
[423320847,1780054299000,-1451.984285,0.00032877,7]
[423320854,1780054299000,-2687.40585344,0.00032877,7]
[423320853,1780054299000,-989.338049,0.00032877,7]
[423320857,1780054299000,-427.98030222,0.0001208,2]
[423320848,1780054299000,-373.762547,0.00032877,7]
[423320839,1780054299000,-373.762547,0.00032877,7]
[423320845,1780054299000,-3294.309975,0.00032877,7]
[423320833,1780054299000,-419.371639,0.00032877,7]
[423320844,1780054299000,-381.75966,0.00032877,7]
[423320840,1780054299000,-776.948554,0.00032877,7]
[423320843,1780054299000,-419.371639,0.00032877,7]
[423320842,1780054299000,-989.338049,0.00032877,7]
[423320835,1780054299000,-3294.309975,0.00032877,7]
[423320838,1780054299000,-1451.984285,0.00032877,7]
[423320841,1780054299000,-557.285959,0.00032877,7]
[423320852,1780054299000,-381.75966,0.00032877,7]
[423320851,1780054299000,-557.285959,0.00032877,7]
[423320836,1780054299000,-788.53163,0.00032877,7]
[423320846,1780054299000,-788.53163,0.00032877,7]
[423320849,1780054299000,-429.045845,0.00032877,7]
[423320869,1780054300000,-250.3475263,0.00015683,2]
[423320867,1780054300000,-123.23433579,0.00014409,2]
[423320866,1780054300000,-500.0,0.00013176,2]
[423320868,1780054300000,-254.6524737,0.00014409,2]
[423320870,1780054305000,500.0,0.00010934,2]
[423320871,1780054373000,-193.0,0.00011483,2]
[423320872,1780054378000,-193.0,0.00011483,2]
[423320874,1780054402000,-57.0,0.00011483,2]
[423320877,1780054430000,500.0,0.00010934,2]
[423320879,1780054457000,160.4,9.456e-05,2]
[423320878,1780054457000,-202.891275,0.00011083,2]
[423320880,1780054481000,-202.891275,0.00011083,2]
[423320881,1780054505000,-519.94181,0.00011083,2]
[423320882,1780054529000,-519.94181,0.00011083,2]
[423320884,1780054552000,-500.0,0.0001107,2]
[423320885,1780054553000,1000.0,0.00010884,2]
[423320886,1780054554000,724.99,0.00010868,2]
[423320887,1780054568000,500.0,0.00010868,2]
[423320888,1780054605000,-187.58856602,0.00011083,2]
[423320889,1780054630000,-980.564054,0.00011028,2]
[423320890,1780054632000,500.0,0.00010208,2]
[423320891,1780054655000,-980.564054,0.00011028,2]
[423320892,1780054722000,150.0,0.0001158,120]
[423320893,1780054912000,271.6256409,0.00010972,2]
[423320894,1780055006000,500.0,0.00024992,120]
[423320895,1780055007000,500.0,0.00027157,120]
[423320896,1780055024000,150.0,0.00010952,2]
[423320897,1780055033000,161.68,0.00010556,2]
[423320898,1780055033000,161.68,0.00010667,2]
[423320899,1780055033000,161.68,0.00010778,2]
[423320901,1780055033000,161.68,0.00011,2]
[423320900,1780055033000,161.68,0.00010889,2]
[423320902,1780055068000,359.01709344,0.00010733,2]
[423320903,1780055069000,318.56110154,0.00010723,2]
[423320904,1780055155000,-38.871892,0.00011028,2]
[423320905,1780055180000,-202.891275,0.00011072,2]
[423320906,1780055184000,1600.0,0.00010995,2]
[423320908,1780055234000,150.0,0.00010995,2]
[423320907,1780055234000,-489.28317749,0.00011072,2]
[423320909,1780055238000,-489.28317749,0.00011072,2]
[423320910,1780055239000,-599.70030467,0.00011072,2]
[423320911,1780055287000,-202.891275,0.00011072,2]
[423320912,1780055289000,274.62573548,0.00010972,2]
[423320913,1780055291000,-202.891275,0.00011072,2]
[423320914,1780055318000,-489.28317749,0.00011032,2]
[423320916,1780055346000,-202.891275,0.00011032,2]
[423320915,1780055346000,200.0,0.00010955,2]
[423320917,1780055370000,-202.891275,0.00011032,2]
[423320918,1780055371000,500.0,0.00010856,2]
[423320919,1780055373000,-194.60192349,0.00011032,2]
[423320920,1780055396000,-460.25800293,0.00011032,2]
[423320921,1780055423000,-460.25800293,0.00011032,2]
[423320922,1780055424000,150.0,0.00010959,2]
[423320923,1780055425000,2500000.0,0.00010932,2]
[423321045,1780055448000,-431.23146498,0.00011032,2]
[423321059,1780055449000,-161.68,0.00011333,2]
[423321060,1780055449000,-250.0,0.00011374,2]
[423321058,1780055449000,-40936.63362936,0.00011332,2]
[423321055,1780055449000,-9831.96610562,0.00011122,2]
[423321056,1780055449000,-272499.9,0.00011132,2]
[423321057,1780055449000,-161.68,0.00011222,2]
[423321049,1780055449000,-1000.0,0.00011071,2]
[423321048,1780055449000,-6812.123,0.00011032,2]
[423321053,1780055449000,-188.76553908,0.00011072,2]
[423321054,1780055449000,-161.68,0.00011111,2]
[423321052,1780055449000,-305.17,0.00011072,2]
[423321051,1780055449000,-1538.94,0.00011072,2]
[423321046,1780055449000,-47041.83317818,0.00011032,2]
[423321047,1780055449000,-2500.0,0.00011032,2]
[423321061,1780055449000,-3801.91039577,0.00011376,2]
[423321050,1780055449000,-1297.60951535,0.00011072,2]
[423321064,1780055449000,-379.47016168,0.00011432,2]
[423321077,1780055449000,-98109.26419572,0.00011564,2]
[423321062,1780055449000,-1124.09990662,0.00011432,2]
[423321080,1780055449000,-80260.15892897,0.00011564,2]
[423321081,1780055449000,-1442.99431612,0.00011564,2]
[423321079,1780055449000,-32089.44917764,0.00011564,2]
[423321063,1780055449000,-5000.0,0.00011432,2]
[423321074,1780055449000,-150.0,0.00011543,2]
[423321071,1780055449000,-299.99,0.0001154,2]
[423321073,1780055449000,-11555.0,0.00011541,2]
[423321072,1780055449000,-9999.99,0.0001154,2]
[423321076,1780055449000,-161.68,0.00011556,2]
[423321078,1780055449000,-80117.01046646,0.00011564,2]
[423321069,1780055449000,-150.99,0.0001154,2]
[423321070,1780055449000,-7561.61,0.0001154,2]
[423321068,1780055449000,-310.075,0.00011477,2]
[423321067,1780055449000,-5637.144,0.00011477,2]
[423321065,1780055449000,-640.10091111,0.00011432,2]
[423321066,1780055449000,-161.68,0.00011445,2]
[423321075,1780055449000,-79703.73728424,0.00011555,2]
[423321090,1780055450000,-285.62703847,0.00011611,2]
[423321086,1780055450000,-1324.45,0.0001158,2]
[423321089,1780055450000,-209.09056759,0.00011602,2]
[423321087,1780055450000,-200.0,0.0001158,2]
[423321091,1780055450000,-3801.91039569,0.00011623,2]
[423321085,1780055450000,-150.0,0.0001158,2]
[423321084,1780055450000,-1206795.72273652,0.00011564,2]
[423321083,1780055450000,-614.96526986,0.00011564,2]
[423321082,1780055450000,-570.43490871,0.00011564,2]
[423321088,1780055450000,-215.5484138,0.00011602,2]
[423321092,1780055450000,-33230.1787,0.00011664,2]
[423321094,1780055450000,-161.68,0.00011667,2]
[423321096,1780055450000,-209.08487653,0.00011674,2]
[423321097,1780055450000,-249.96379392,0.00011708,2]
[423321095,1780055450000,-209.08487654,0.00011674,2]
[423321098,1780055450000,-1553.0,0.00011708,2]
[423321100,1780055450000,-500.0,0.00011768,2]
[423321099,1780055450000,-40936.63362927,0.00011715,2]
[423321102,1780055450000,-258.0,0.00011768,2]
[423321101,1780055450000,-1189.0,0.00011768,2]
[423321104,1780055450000,-713.0,0.00011785,2]
[423321093,1780055450000,-2000.0,0.00011664,2]
[423321103,1780055450000,-191.0,0.00011768,2]
[423321157,1780055451000,-790.52,0.00013698,2]
[423321159,1780055451000,-790.52,0.00013698,2]
[423321160,1780055451000,-790.52,0.00013698,2]
[423321154,1780055451000,-790.52,0.00013698,2]
[423321148,1780055451000,-502.23541788,0.00013698,2]
[423321150,1780055451000,-500.97558109,0.00013698,2]
[423321144,1780055451000,-3801.91039569,0.00013598,2]
[423321162,1780055451000,-790.52,0.00013698,2]
[423321146,1780055451000,-500.0,0.00013698,2]
[423321153,1780055451000,-790.52,0.00013698,2]
[423321164,1780055451000,-790.52,0.00013698,2]
[423321165,1780055451000,-790.52,0.00013698,2]
[423321156,1780055451000,-790.52,0.00013698,2]
[423321161,1780055451000,-790.52,0.00013698,2]
[423321158,1780055451000,-790.52,0.00013698,2]
[423321155,1780055451000,-790.52,0.00013698,2]
[423321143,1780055451000,-166.43,0.00013404,2]
[423321176,1780055451000,-500.0,0.00013698,2]
[423321169,1780055451000,-790.52,0.00013698,2]
[423321166,1780055451000,-790.52,0.00013698,2]
[423321167,1780055451000,-790.52,0.00013698,2]
[423321174,1780055451000,-790.68748951,0.00013698,2]
[423321171,1780055451000,-790.52,0.00013698,2]
[423321163,1780055451000,-790.52,0.00013698,2]
[423321147,1780055451000,-500.0,0.00013698,2]
[423321142,1780055451000,-3801.91039569,0.00013351,2]
[423321151,1780055451000,-790.52,0.00013698,2]
[423321120,1780055451000,-3801.91039569,0.00012117,2]
[423321122,1780055451000,-500.0,0.00012316,2]
[423321121,1780055451000,-1324.45,0.00012159,2]
[423321125,1780055451000,-2000.0,0.00012407,2]
[423321124,1780055451000,-1600.0,0.00012369,2]
[423321123,1780055451000,-3801.91039569,0.00012364,2]
[423321128,1780055451000,-250.0,0.00012466,2]
[423321127,1780055451000,-1324.45,0.00012449,2]
[423321130,1780055451000,-40936.63362927,0.00012482,2]
[423321136,1780055451000,-40936.63362927,0.00012865,2]
[423321129,1780055451000,-152.0,0.00012468,7]
[423321152,1780055451000,-790.52,0.00013698,2]
[423321131,1780055451000,-250.0,0.00012535,2]
[423321134,1780055451000,-1324.45,0.00012738,2]
[423321137,1780055451000,-166.43,0.00012912,2]
[423321138,1780055451000,-3801.91039569,0.00013104,2]
[423321139,1780055451000,-40936.63362927,0.00013249,2]
[423321135,1780055451000,-3801.91039569,0.00012857,2]
[423321132,1780055451000,-193.0,0.00012557,2]
[423321140,1780055451000,-290.3445,0.0001327,2]
[423321141,1780055451000,-271.2824293,0.00013299,2]
[423321168,1780055451000,-790.52,0.00013698,2]
[423321149,1780055451000,-500.0,0.00013698,2]
[423321145,1780055451000,-40936.63362927,0.00013632,2]
[423321133,1780055451000,-3801.91039569,0.0001261,2]
[423321170,1780055451000,-790.52,0.00013698,2]
[423321182,1780055451000,-569.59,0.00013698,2]
[423321172,1780055451000,-790.52,0.00013698,2]
[423321215,1780055451000,-1012.72,0.00013698,2]
[423321207,1780055451000,-1012.72,0.00013698,2]
[423321205,1780055451000,-1012.72,0.00013698,2]
[423321208,1780055451000,-1012.72,0.00013698,2]
[423321214,1780055451000,-1012.72,0.00013698,2]
[423321213,1780055451000,-1012.72,0.00013698,2]
[423321210,1780055451000,-1012.72,0.00013698,2]
[423321209,1780055451000,-1012.72,0.00013698,2]
[423321211,1780055451000,-1012.72,0.00013698,2]
[423321206,1780055451000,-1012.72,0.00013698,2]
[423321212,1780055451000,-1012.72,0.00013698,2]
[423321204,1780055451000,-1012.72,0.00013698,2]
[423321216,1780055451000,-1012.72,0.00013698,2]
[423321217,1780055451000,-200.0,0.00013699,2]
[423321228,1780055451000,-9831.96610557,0.00014216,2]
[423321219,1780055451000,-166.66,0.00013699,2]
[423321220,1780055451000,-1600.0,0.00013743,2]
[423321226,1780055451000,-166.66,0.0001411,2]
[423321221,1780055451000,-2000.0,0.00013785,2]
[423321225,1780055451000,-40936.63362927,0.00014015,2]
[423321222,1780055451000,-166.66,0.00013836,2]
[423321224,1780055451000,-166.66,0.00013973,2]
[423321223,1780055451000,-166.43,0.00013896,2]
[423321119,1780055451000,-40936.63362927,0.00012099,2]
[423321218,1780055451000,-2500.0,0.00013699,2]
[423321175,1780055451000,-500.0,0.00013698,2]
[423321203,1780055451000,-1012.72,0.00013698,2]
[423321196,1780055451000,-1012.72,0.00013698,2]
[423321173,1780055451000,-790.52,0.00013698,2]
[423321177,1780055451000,-500.0,0.00013698,2]
[423321181,1780055451000,-569.59,0.00013698,2]
[423321179,1780055451000,-620.68779555,0.00013698,2]
[423321178,1780055451000,-500.0,0.00013698,2]
[423321180,1780055451000,-569.59,0.00013698,2]
[423321189,1780055451000,-569.59,0.00013698,2]
[423321183,1780055451000,-569.59,0.00013698,2]
[423321186,1780055451000,-569.59,0.00013698,2]
[423321184,1780055451000,-569.59,0.00013698,2]
[423321187,1780055451000,-569.59,0.00013698,2]
[423321198,1780055451000,-1012.72,0.00013698,2]
[423321185,1780055451000,-569.59,0.00013698,2]
[423321190,1780055451000,-569.59,0.00013698,2]
[423321191,1780055451000,-569.59,0.00013698,2]
[423321195,1780055451000,-1012.72,0.00013698,2]
[423321194,1780055451000,-1012.72,0.00013698,2]
[423321192,1780055451000,-569.59,0.00013698,2]
[423321193,1780055451000,-1012.72,0.00013698,2]
[423321197,1780055451000,-1012.72,0.00013698,2]
[423321199,1780055451000,-1012.72,0.00013698,2]
[423321200,1780055451000,-1012.72,0.00013698,2]
[423321202,1780055451000,-1012.72,0.00013698,2]
[423321201,1780055451000,-1012.72,0.00013698,2]
[423321188,1780055451000,-569.59,0.00013698,2]
[423321227,1780055451000,-569.59,0.0001418,2]
[423321117,1780055451000,-500.0,0.00012042,2]
[423321118,1780055451000,-271.36696458,0.00012061,2]
[423321106,1780055451000,-818.0,0.00011785,2]
[423321108,1780055451000,-976.0,0.00011792,2]
[423321105,1780055451000,-4522.0,0.00011785,2]
[423321107,1780055451000,-1295.0,0.00011785,2]
[423321109,1780055451000,-186.45,0.00011819,2]
[423321110,1780055451000,-1852.42,0.00011819,2]
[423321126,1780055451000,-166.43,0.0001242,2]
[423321112,1780055451000,-5016.55517683,0.00011867,2]
[423321114,1780055451000,-3801.91039569,0.0001187,2]
[423321113,1780055451000,-1324.45,0.0001187,2]
[423321116,1780055451000,-791.65779023,0.00012017,2]
[423321115,1780055451000,-166.43,0.00011928,2]
[423321111,1780055451000,-16186.44,0.00011819,2]
[423321229,1780055452000,-166.66,0.00014247,2]
[423321231,1780055452000,-1000.0,0.00014392,2]
[423321230,1780055452000,-166.66,0.00014384,2]
[423321232,1780055452000,-500.0,0.00014392,2]
[423321234,1780055452000,-569.59,0.00014617,2]
[423321233,1780055452000,-40936.63362927,0.00014399,2]
[423321241,1780055452000,-569.59,0.00014829,2]
[423321235,1780055452000,-40936.63362927,0.00014782,2]
[423321236,1780055452000,-25000.0,0.00014786,3]
[423321238,1780055452000,-25000.0,0.00014803,3]
[423321242,1780055452000,-25000.0,0.0001483,3]
[423321237,1780055452000,-25000.0,0.00014794,3]
[423321239,1780055452000,-25000.0,0.00014812,3]
[423321244,1780055452000,-1890.98570502,0.00014838,3]
[423321245,1780055452000,-2117.20984953,0.00014838,3]
[423321247,1780055452000,-1936.05177765,0.00014838,3]
[423321246,1780055452000,-866.80467388,0.00014838,3]
[423321243,1780055452000,-8249.9358265,0.00014838,3]
[423321248,1780055452000,-595.71444275,0.00014838,3]
[423321240,1780055452000,-25000.0,0.00014821,3]
[423321249,1780055453000,-1115.64968696,0.00014838,3]
[423321250,1780055453000,-5667.42214303,0.00014838,3]
[423321254,1780055453000,-2712.55,0.00014856,3]
[423321253,1780055453000,-8153.35593327,0.00014856,3]
[423321251,1780055453000,-2560.22589468,0.00014838,3]
[423321252,1780055453000,-25000.0,0.00014847,3]
[423321255,1780055454000,470.05279731,0.00011032,2]
[423321256,1780055502000,1092.9,0.00010966,2]
[423321258,1780055576000,1073455.64661065,0.00010932,2]
[423321257,1780055576000,1426544.35338935,0.00010932,2]
[423321259,1780055593000,2000.0,0.00010932,2]
[423321260,1780055603000,426.73394074,0.00010932,2]
[423321262,1780055624000,7373.97457923,0.00010932,2]
[423321263,1780055711000,1953.84193495,0.00028082,120]
[423321265,1780055713000,1832286.38286749,0.00010932,2]
[423321264,1780055713000,667713.61713251,0.00010932,2]
[423321266,1780055755000,2000.0,0.00010932,2]
[423321267,1780055781000,2500.0,0.00010932,2]
[423321268,1780055869000,6452.2277568,0.00010932,2]
[423321269,1780055904000,-1420.93290771,0.00011032,2]
[423321272,1780055928000,2000000.0,0.00010932,2]
[423321271,1780055928000,156761.38937571,0.00010932,2]
[423321273,1780055931000,-1890.98570502,0.00010932,2]
[423321278,1780055980000,-1890.98570502,0.00010932,2]
[423321279,1780056029000,-1890.98570502,0.00010932,2]
[423321280,1780056032000,-2117.20984953,0.00010932,2]
[423321282,1780056081000,438.98,0.00010973,30]
[423321281,1780056081000,-2117.20984953,0.00010932,2]
[423321284,1780056131000,-866.80467388,0.00010862,2]
[423321286,1780056134000,-269.40934776,0.00010932,2]
[423321285,1780056134000,-597.39532612,0.00010862,2]
[423321287,1780056137000,-1464.2,0.00010932,2]
[423321288,1780056163000,-1464.2,0.00010932,2]
[423321289,1780056167000,-1936.05177765,0.00010932,2]
[423321291,1780056195000,400.0,0.000108,3]
[423321290,1780056195000,200.0,0.000107,3]
[423321292,1780056195000,600.0,0.000109,3]
[423321294,1780056196000,-1104.8086,0.00010932,2]
[423321293,1780056196000,-895.1914,0.00010832,2]
[423321299,1780056249000,-155.46,0.00010577,2]
[423321300,1780056249000,-517.97,0.00010756,2]
[423321298,1780056249000,-155.46,0.00010218,2]
[423321301,1780056253000,-155.46,0.00010756,2]
[423321307,1780056433000,200.0,0.000107,3]
[423321308,1780056435000,500.0,0.000108,3]
[423321309,1780056439000,700.0,0.000109,3]
[423321310,1780056442000,-318.06,0.00010566,2]
[423321311,1780056442000,-112.40887164,0.00010756,2]
[423321314,1780056549000,1000.0,0.00028081,120]
[423321322,1780056631000,-280.63250004,0.00010656,2]
[423321328,1780056632000,-618.31401655,0.00010756,2]
[423321323,1780056632000,-267.38181097,0.00010656,2]
[423321324,1780056632000,-348.69994336,0.00010656,2]
[423321326,1780056632000,-43.05112836,0.00010756,2]
[423321325,1780056632000,-310.57408811,0.00010656,2]
[423321330,1780056632000,-21084.35998847,0.00010756,2]
[423321327,1780056632000,-665.29115085,0.00010756,2]
[423321331,1780056632000,-359739.46390141,0.00010832,2]
[423321332,1780056632000,-61745.06209069,0.00010832,2]
[423321329,1780056632000,-1529.41484413,0.00010756,2]
[423321399,1780056638000,-500.0,0.00011031,2]
[423321383,1780056638000,-150.0,0.00011031,2]
[423321386,1780056638000,-403.16503246,0.00011031,2]
[423321388,1780056638000,-500.0,0.00011031,2]
[423321389,1780056638000,-500.0,0.00011031,2]
[423321387,1780056638000,-186.74564241,0.00011031,2]
[423321391,1780056638000,-500.0,0.00011031,2]
[423321390,1780056638000,-500.0,0.00011031,2]
[423321393,1780056638000,-500.0,0.00011031,2]
[423321392,1780056638000,-154.96190243,0.00011031,2]
[423321385,1780056638000,-500.0,0.00011031,2]
[423321396,1780056638000,-500.0,0.00011031,2]
[423321394,1780056638000,-500.0,0.00011031,2]
[423321398,1780056638000,-500.0,0.00011031,2]
[423321402,1780056638000,-327.4938552,0.00011031,2]
[423321401,1780056638000,-500.0,0.00011031,2]
[423321400,1780056638000,-500.0,0.00011031,2]
[423321395,1780056638000,-214.48670305,0.00011031,2]
[423321384,1780056638000,-1200.0,0.00011031,2]
[423321370,1780056638000,-2000.0,0.00010932,2]
[423321382,1780056638000,-150.0,0.00011031,2]
[423321397,1780056638000,-330.32150173,0.00011031,2]
[423321365,1780056638000,-2500.0,0.00010832,2]
[423321364,1780056638000,-1078515.4740079,0.00010832,2]
[423321367,1780056638000,-284.48929382,0.00010932,2]
[423321366,1780056638000,-5645.6992872,0.000109,2]
[423321369,1780056638000,-327092.56408476,0.00010932,2]
[423321368,1780056638000,-401.69008289,0.00010932,2]
[423321372,1780056638000,-155.46,0.00010935,2]
[423321373,1780056638000,-150.0,0.00010959,2]
[423321371,1780056638000,-5000.0,0.00010932,2]
[423321375,1780056638000,-182.81,0.00010966,2]
[423321376,1780056638000,-2775.74,0.00010966,2]
[423321374,1780056638000,-200.0,0.00010966,2]
[423321378,1780056638000,-187.42724509,0.00011002,2]
[423321377,1780056638000,-187.42724509,0.00011002,2]
[423321380,1780056638000,-1000.0,0.00011031,2]
[423321379,1780056638000,-187.42724509,0.00011002,2]
[423321381,1780056638000,-295.80184599,0.00011031,2]
[423321414,1780056638000,-500.0,0.00011031,2]
[423321449,1780056638000,-500.0,0.00011031,2]
[423321405,1780056638000,-419.85017285,0.00011031,2]
[423321453,1780056638000,-500.0,0.00011031,2]
[423321462,1780056638000,-795.07894597,0.00011031,2]
[423321460,1780056638000,-500.0,0.00011031,2]
[423321466,1780056638000,-795.07894597,0.00011031,2]
[423321469,1780056638000,-795.07894597,0.00011031,2]
[423321471,1780056638000,-795.07894597,0.00011031,2]
[423321474,1780056638000,-795.07894597,0.00011031,2]
[423321476,1780056638000,-795.07894597,0.00011031,2]
[423321478,1780056638000,-795.07894597,0.00011031,2]
[423321484,1780056638000,-795.07894597,0.00011031,2]
[423321480,1780056638000,-795.07894597,0.00011031,2]
[423321485,1780056638000,-795.07894597,0.00011031,2]
[423321486,1780056638000,-795.07894597,0.00011031,2]
[423321488,1780056638000,-795.07894597,0.00011031,2]
[423321487,1780056638000,-795.07894597,0.00011031,2]
[423321489,1780056638000,-795.07894597,0.00011031,2]
[423321403,1780056638000,-500.0,0.00011031,2]
[423321458,1780056638000,-500.0,0.00011031,2]
[423321455,1780056638000,-500.0,0.00011031,2]
[423321482,1780056638000,-795.07894597,0.00011031,2]
[423321419,1780056638000,-500.0,0.00011031,2]
[423321421,1780056638000,-500.0,0.00011031,2]
[423321408,1780056638000,-500.0,0.00011031,2]
[423321416,1780056638000,-500.0,0.00011031,2]
[423321424,1780056638000,-500.0,0.00011031,2]
[423321426,1780056638000,-500.0,0.00011031,2]
[423321464,1780056638000,-795.07894597,0.00011031,2]
[423321428,1780056638000,-500.0,0.00011031,2]
[423321410,1780056638000,-500.0,0.00011031,2]
[423321439,1780056638000,-500.0,0.00011031,2]
[423321430,1780056638000,-232.89159991,0.00011031,2]
[423321434,1780056638000,-500.0,0.00011031,2]
[423321437,1780056638000,-500.0,0.00011031,2]
[423321442,1780056638000,-500.0,0.00011031,2]
[423321444,1780056638000,-500.0,0.00011031,2]
[423321446,1780056638000,-500.0,0.00011031,2]
[423321451,1780056638000,-500.0,0.00011031,2]
[423321432,1780056638000,-500.0,0.00011031,2]
[423321412,1780056638000,-500.0,0.00011031,2]
[423321526,1780056639000,-787.1281565,0.00011031,2]
[423321524,1780056639000,-787.1281565,0.00011031,2]
[423321525,1780056639000,-787.1281565,0.00011031,2]
[423321523,1780056639000,-787.1281565,0.00011031,2]
[423321541,1780056639000,-250.0,0.00011048,2]
[423321522,1780056639000,-787.1281565,0.00011031,2]
[423321521,1780056639000,-787.1281565,0.00011031,2]
[423321518,1780056639000,-787.1281565,0.00011031,2]
[423321527,1780056639000,-787.1281565,0.00011031,2]
[423321519,1780056639000,-787.1281565,0.00011031,2]
[423321520,1780056639000,-787.1281565,0.00011031,2]
[423321528,1780056639000,-787.1281565,0.00011031,2]
[423321539,1780056639000,-300.0,0.00011031,2]
[423321529,1780056639000,-787.1281565,0.00011031,2]
[423321534,1780056639000,-787.1281565,0.00011031,2]
[423321532,1780056639000,-787.1281565,0.00011031,2]
[423321531,1780056639000,-787.1281565,0.00011031,2]
[423321533,1780056639000,-787.1281565,0.00011031,2]
[423321536,1780056639000,-153.79860058,0.00011031,2]
[423321535,1780056639000,-787.12815648,0.00011031,2]
[423321537,1780056639000,-150.0,0.00011031,2]
[423321538,1780056639000,-167.39771104,0.00011031,2]
[423321516,1780056639000,-787.1281565,0.00011031,2]
[423321530,1780056639000,-787.1281565,0.00011031,2]
[423321517,1780056639000,-787.1281565,0.00011031,2]
[423321496,1780056639000,-795.07894597,0.00011031,2]
[423321512,1780056639000,-795.07894597,0.00011031,2]
[423321540,1780056639000,-33230.1787,0.00011032,2]
[423321490,1780056639000,-795.07894597,0.00011031,2]
[423321491,1780056639000,-795.07894597,0.00011031,2]
[423321493,1780056639000,-795.07894597,0.00011031,2]
[423321492,1780056639000,-795.07894597,0.00011031,2]
[423321495,1780056639000,-795.07894597,0.00011031,2]
[423321494,1780056639000,-795.07894597,0.00011031,2]
[423321498,1780056639000,-795.07894597,0.00011031,2]
[423321497,1780056639000,-795.07894597,0.00011031,2]
[423321500,1780056639000,-795.07894597,0.00011031,2]
[423321501,1780056639000,-795.07894597,0.00011031,2]
[423321515,1780056639000,-301.02392631,0.00011031,2]
[423321499,1780056639000,-795.07894597,0.00011031,2]
[423321502,1780056639000,-795.07894597,0.00011031,2]
[423321504,1780056639000,-795.07894597,0.00011031,2]
[423321505,1780056639000,-795.07894597,0.00011031,2]
[423321506,1780056639000,-795.07894597,0.00011031,2]
[423321507,1780056639000,-795.07894597,0.00011031,2]
[423321509,1780056639000,-795.07894597,0.00011031,2]
[423321508,1780056639000,-795.07894597,0.00011031,2]
[423321510,1780056639000,-795.07894597,0.00011031,2]
[423321511,1780056639000,-795.07894597,0.00011031,2]
[423321513,1780056639000,-795.07894597,0.00011031,2]
[423321514,1780056639000,-500.0,0.00011031,2]
[423321503,1780056639000,-795.07894597,0.00011031,2]
[423321542,1780056639000,-500.0,0.00011048,2]
[423321546,1780056639000,-215.61573249,0.00011099,2]
[423321543,1780056639000,-150.0,0.00011065,2]
[423321576,1780056639000,-53922.72,0.00012205,2]
[423321574,1780056639000,-9999.99,0.00012205,2]
[423321573,1780056639000,-353.44,0.00012205,2]
[423321575,1780056639000,-4999.99,0.00012205,2]
[423321578,1780056639000,-3016.81,0.00012205,2]
[423321577,1780056639000,-9999.99,0.00012205,2]
[423321580,1780056639000,-2862.11,0.00012205,2]
[423321579,1780056639000,-1490.42,0.00012205,2]
[423321581,1780056639000,-960.0,0.00012578,2]
[423321584,1780056639000,-498.0,0.00012823,2]
[423321582,1780056639000,-1000.0,0.00012596,2]
[423321586,1780056639000,-635.0,0.00012848,2]
[423321589,1780056639000,-2400.0,0.00012952,2]
[423321588,1780056639000,-500.0,0.00012924,2]
[423321585,1780056639000,-293.99712603,0.00012823,2]
[423321587,1780056639000,-1025.0,0.00012874,2]